bitfinex/quotes_SOLUSD_20220211
["timestamp","ask_amount","ask_price","bid_price","bid_amount"]
[1644596132834,47.27330348,106.12,106.06,14.143]
[1644596133431,42.56030348,106.12,106.06,14.143]
[1644596133633,42.56030348,106.12,106.07,2.38366791]
[1644596133831,42.56030348,106.12,106.07,8.38366791]
[1644596134035,42.56030348,106.12,106.07,19.70366791]
[1644596134334,42.56030348,106.12,106.08,14.1403]
[1644596134734,42.56030348,106.12,106.09,6.0]
[1644596135237,42.56030348,106.12,106.08,6.0]
[1644596136438,42.56030348,106.12,106.07,14.1415]
[1644596136637,42.56030348,106.12,106.04,51.8537]
[1644596136836,42.56030348,106.12,106.05,14.1443]
[1644596137038,4.713,106.11,106.05,14.1443]
[1644596137237,4.713,106.11,106.02,11.32]
[1644596137438,37.89877176,106.1,106.02,11.32]
[1644596137838,42.10580439,106.08,106.02,11.32]
[1644596138042,42.10580439,106.08,106.02,12.65994887]
[1644596138238,42.10580439,106.08,106.02,11.32]
[1644596138843,42.10580439,106.08,106.02,25.4691]
[1644596139242,42.10580439,106.08,106.03,7.09766791]
[1644596139642,42.10580439,106.08,106.04,2.38366791]
[1644596139843,42.10580439,106.08,106.04,8.38366791]
[1644596140044,42.10580439,106.08,106.04,8.63366791]
[1644596140244,42.10580439,106.08,106.05,7.09766791]
[1644596140444,0.03775111,106.12,106.05,4.714]
[1644596140649,4.75075111,106.14,106.05,4.964]
[1644596140845,4.74975111,106.15,106.05,7.34766791]
[1644596141050,0.03775111,106.14,106.05,7.34766791]
[1644596141245,0.03775111,106.14,106.06,17.32]
[1644596141447,0.03775111,106.15,106.07,6.86737287]
[1644596141648,41.305845,106.16,106.07,18.41566791]
[1644596141845,41.305845,106.16,106.08,8.38366791]
[1644596141846,0.03775111,106.15,106.08,8.38366791]
[1644596142045,46.016845,106.16,106.08,8.38366791]
[1644596142247,41.305845,106.16,106.09,4.711]
[1644596142446,41.305845,106.16,106.09,18.8501]
[1644596142646,41.305845,106.16,106.09,19.1001]
[1644596143566,4.711,106.15,106.09,19.1001]
[1644596143966,4.711,106.15,106.09,14.1391]
[1644596144166,37.70802637,106.14,106.07,14.1419]
[1644596144367,47.98574796,106.12,106.07,14.1419]
[1644596144566,47.98574796,106.12,106.07,14.3919]
[1644596144968,0.002,106.13,106.08,4.712]
[1644596145169,0.03775111,106.18,106.11,14.1339]
[1644596145372,4.74875111,106.21,106.12,16.03]
[1644596145571,0.03775111,106.19,106.12,22.03]
[1644596145875,0.03775111,106.2,106.12,22.28]
[1644596146071,45.86516519,106.23,106.12,17.57]
[1644596146273,44.43521076,106.21,106.12,17.32]
[1644596146674,4.74575111,106.2,106.1,53.16454887]
[1644596146872,0.03775111,106.19,106.09,35.92884887]
[1644596147073,4.71,106.18,106.1,6.0]
[1644596147273,4.71,106.18,106.1,6.25]
[1644596147473,4.71,106.18,106.11,14.1377]
[1644596147474,36.53757001,106.17,106.11,14.1377]
[1644596151679,36.53757001,106.17,106.11,14.3877]
[1644596152077,36.53757001,106.17,106.11,14.1377]
[1644596152578,41.24757001,106.17,106.11,14.1377]
[1644596152978,41.24757001,106.17,106.08,6.04994887]
[1644596153179,41.24757001,106.17,106.08,4.71]
[1644596153377,11.32,106.16,106.08,4.71]
[1644596153581,4.711,106.15,106.08,4.71]
[1644596153777,45.03359772,106.14,106.08,4.71]
[1644596153977,45.03359772,106.14,106.06,4.712]
[1644596154278,45.07134883,106.14,106.06,4.712]
[1644596154681,45.07134883,106.14,106.06,18.8563]
[1644596155082,45.07134883,106.14,106.06,4.712]
[1644596155281,47.88087891,106.12,106.04,15.73594887]
[1644596155580,47.88087891,106.12,106.04,14.396]
[1644596155779,37.87437337,106.1,106.04,15.73594887]
[1644596155980,37.87437337,106.1,106.04,14.396]
[1644596156181,37.87437337,106.1,106.04,4.712]
[1644596156379,37.87437337,106.1,106.04,6.05194887]
[1644596156580,37.87437337,106.1,106.04,1.33994887]
[1644596156778,37.87437337,106.1,106.03,1.33994887]
[1644596156979,4.714,106.09,106.02,6.05294887]
[1644596157680,35.02526556,106.08,106.02,6.05294887]
[1644596157882,35.02526556,106.08,106.01,1.33994887]
[1644596158081,39.73926556,106.08,106.01,1.33994887]
[1644596158684,39.73926556,106.08,106.02,14.1494]
[1644596158880,35.02526556,106.08,106.02,14.1494]
[1644596159081,4.714,106.11,106.02,36.17262984]
[1644596159282,4.75175111,106.13,106.03,8.38366791]
[1644596159484,0.03775111,106.13,106.03,21.04361678]
[1644596159681,0.03775111,106.14,106.04,3.72361678]
[1644596159882,0.03775111,106.12,106.05,1.33994887]
[1644596160081,42.74733983,106.14,106.05,14.43561678]
[1644596160281,42.74733983,106.14,106.06,8.38366791]
[1644596160483,42.74733983,106.14,106.07,4.712]
[1644596160684,42.74733983,106.14,106.07,21.48766791]
[1644596160884,42.74733983,106.14,106.07,21.23766791]
[1644596161083,4.712,106.13,106.06,6.0]
[1644596161288,4.712,106.13,106.05,8.43561678]
[1644596161485,42.14018025,106.12,106.05,7.34566791]
[1644596162384,4.713,106.11,106.06,14.1444]
[1644596162585,4.713,106.11,106.04,1.33994887]
[1644596162786,4.713,106.11,106.01,6.05294887]
[1644596162986,2.38366791,106.11,106.01,1.33994887]
[1644596163185,2.38366791,106.11,106.0,26.19664887]
[1644596163397,42.08633536,106.1,106.01,4.714]
[1644596164487,4.714,106.09,106.0,15.49224887]
[1644596164687,18.8666,106.09,106.01,4.714]
[1644596165087,42.46477842,106.08,106.01,4.714]
[1644596165289,42.46477842,106.08,106.0,15.49224887]
[1644596165488,4.714,106.07,106.0,1.33994887]
[1644596165986,4.714,106.07,105.99,14.1536]
[1644596166390,40.05106782,106.06,105.99,14.1536]
[1644596166590,4.715,106.05,105.99,14.1536]
[1644596166790,38.52424029,106.04,105.98,1.33994887]
[1644596167587,38.52424029,106.04,105.98,1.58994887]
[1644596168093,38.52424029,106.04,105.98,15.74494887]
[1644596169892,38.52424029,106.04,105.98,14.405]
[1644596170090,38.52424029,106.04,105.97,18.38326578]
[1644596170292,38.52424029,106.04,105.88,0.1]
[1644596170293,4.716,106.03,105.88,0.1]
[1644596170491,7.09966791,106.03,105.9,3.91341609]
[1644596170692,2.38366791,106.02,105.9,2.66612098]
[1644596170993,2.38366791,106.02,105.89,1.33128761]
[1644596170994,16.038,106.01,105.89,1.33128761]
[1644596171193,40.93597757,106.0,105.88,1.43128761]
[1644596171394,14.1674,105.98,105.88,1.43128761]
[1644596171596,39.231446,105.97,105.88,1.43128761]
[1644596171795,43.951446,105.97,105.88,0.1]
[1644596172597,55.271446,105.97,105.88,0.1]
[1644596172798,69.440846,105.97,105.88,0.1]
[1644596172995,80.719846,105.97,105.88,0.1]
[1644596173800,76.249846,105.97,105.88,0.1]
[1644596174698,4.72,105.96,105.88,0.1]
[1644596174898,47.66441024,105.95,105.88,0.1]
[1644596175098,4.72,105.94,105.88,0.1]
[1644596176298,46.62855855,105.93,105.88,0.1]
[1644596177522,4.721,105.92,105.88,0.1]
[1644596177723,46.87855855,105.93,105.88,0.1]
[1644596177924,4.721,105.92,105.88,0.1]
[1644596178628,47.3722754,105.91,105.83,1.33128761]
[1644596178830,4.722,105.9,105.81,60.79648761]
[1644596179127,4.722,105.9,105.81,1.33128761]
[1644596179529,37.99668226,105.89,105.81,1.33128761]
[1644596179727,4.723,105.88,105.8,40.11568761]
[1644596179927,34.88449482,105.87,105.81,6.0]
[1644596180528,4.724,105.86,105.79,7.33128761]
[1644596180730,34.88449482,105.87,105.79,7.33128761]
[1644596180930,4.724,105.86,105.79,1.58128761]
[1644596181132,4.724,105.86,105.79,1.33128761]
[1644596181330,40.0,105.84,105.78,0.97023127]
[1644596181532,52.35176084,105.83,105.71,2.66612098]
[1644596181735,58.94676084,105.83,105.71,4.06711604]
[1644596181931,61.33042875,105.83,105.69,2.66612098]
[1644596182134,7.11066791,105.82,105.67,2.66612098]
[1644596182330,11.32,105.81,105.66,6.73323702]
[1644596182537,14.1967,105.78,105.65,6.73323702]
[1644596182732,37.21410483,105.77,105.65,6.73323702]
[1644596182935,4.729,105.76,105.65,6.73323702]
[1644596183132,4.729,105.76,105.66,6.0]
[1644596183331,4.729,105.76,105.65,4.06711604]
[1644596183733,46.93270082,105.75,105.65,4.31711604]
[1644596184032,37.90816485,105.73,105.65,0.25]
[1644596184230,32.5188,105.77,105.64,44.35032297]
[1644596184231,4.73,105.76,105.64,44.35032297]
[1644596184431,94.8091,105.82,105.64,44.35032297]
[1644596184432,0.25,105.73,105.64,55.67032297]
[1644596184633,7.0,105.79,105.65,9.78468291]
[1644596184832,16.049,105.81,105.66,11.32]
[1644596185033,47.4901,105.82,105.67,3.78409066]
[1644596185232,47.5974737,105.77,105.67,6.25]
[1644596185432,23.10302147,105.75,105.67,0.25]
[1644596185634,31.97402147,105.75,105.67,0.25]
[1644596186235,8.871,105.75,105.67,6.25]
[1644596186435,4.729,105.78,105.67,20.1917]
[1644596186636,4.729,105.81,105.68,13.70366791]
[1644596186834,4.729,105.79,105.69,6.0]
[1644596187036,4.728,105.78,105.68,0.25]
[1644596187236,4.728,105.78,105.66,62.96147456]
[1644596187434,48.02222603,105.77,105.66,39.15767456]
[1644596187835,48.27222603,105.77,105.66,39.15767456]
[1644596188134,22.67826914,105.75,105.66,39.15767456]
[1644596188335,4.73,105.74,105.65,50.3273]
[1644596188535,4.73,105.74,105.66,6.0]
[1644596188736,22.67826914,105.75,105.65,39.0073]
[1644596188936,21.1959,105.79,105.65,39.0073]
[1644596188937,7.0,105.79,105.66,8.38366791]
[1644596189138,11.32,105.8,105.67,14.1927]
[1644596189335,4.729,105.79,105.68,6.0]
[1644596189535,16.048,105.81,105.68,8.38366791]
[1644596189739,30.7607,105.82,105.69,11.32]
[1644596189936,45.8918544,105.81,105.7,45.7829407]
[1644596190140,45.8918544,105.81,105.7,65.48660861]
[1644596190337,4.727,105.8,105.71,16.57046791]
[1644596190537,24.80864077,105.79,105.72,40.3860259]
[1644596190742,24.80864077,105.79,105.72,49.01969381]
[1644596190940,24.80864077,105.79,105.72,8.63366791]
[1644596191139,4.727,105.78,105.69,11.32]
[1644596191342,4.727,105.78,105.69,2.38366791]
[1644596191539,4.727,105.78,105.67,39.19726791]
[1644596191739,4.727,105.78,105.67,39.44726791]
[1644596191940,9.624,105.78,105.67,42.94108688]
[1644596192138,45.8918544,105.77,105.67,42.94108688]
[1644596192738,24.80864077,105.75,105.67,42.94108688]
[1644596193740,24.80864077,105.75,105.67,42.69108688]
[1644596193942,4.729,105.74,105.67,2.38366791]
[1644596194141,24.80864077,105.75,105.67,2.38366791]
[1644596194943,24.80864077,105.75,105.67,39.02491644]
[1644596195141,24.80864077,105.75,105.67,39.27491644]
[1644596195542,24.80864077,105.75,105.67,53.46761644]
[1644596195742,25.05864077,105.75,105.67,53.46761644]
[1644596197943,25.05864077,105.75,105.67,16.82636791]
[1644596198543,24.80864077,105.75,105.67,16.82636791]
[1644596198742,24.80864077,105.75,105.68,3.79707626]
[1644596199743,25.05864077,105.75,105.68,6.46319724]
[1644596200643,7.0,105.78,105.69,44.9104934]
[1644596200843,23.5754,105.8,105.69,44.9104934]
[1644596200844,4.728,105.8,105.7,2.66612098]
[1644596201048,7.0,105.8,105.71,11.32]
[1644596201343,4.727,105.8,105.72,6.46319724]
[1644596201543,46.72913543,105.79,105.72,6.46319724]
[1644596201745,46.72913543,105.79,105.72,6.71319724]
[1644596201945,46.72913543,105.79,105.73,3.79707626]
[1644596202142,4.727,105.78,105.73,51.58414999]
[1644596202344,46.72913543,105.79,105.73,47.78707373]
[1644596202544,46.72913543,105.79,105.72,16.61978889]
[1644596202946,46.72913543,105.79,105.73,3.8110035]
[1644596203144,0.25,105.79,105.73,3.8110035]
[1644596203365,11.727,105.84,105.73,3.8110035]
[1644596203543,11.977,105.84,105.73,6.47712448]
[1644596204145,35.18189966,105.83,105.73,40.87159792]
[1644596204344,4.726,105.82,105.74,3.8110035]
[1644596204745,4.726,105.82,105.73,6.47712448]
[1644596204947,4.726,105.82,105.73,2.66612098]
[1644596205448,35.51859551,105.81,105.73,50.14856086]
[1644596205646,35.51859551,105.81,105.74,3.8178432]
[1644596205846,4.727,105.8,105.74,3.8178432]
[1644596206049,29.42256669,105.79,105.74,3.8178432]
[1644596207156,29.42256669,105.79,105.74,6.48396418]
[1644596207853,4.727,105.81,105.75,2.66612098]
[1644596208454,4.726,105.83,105.76,2.66612098]
[1644596208655,18.9128,105.84,105.76,2.66612098]
[1644596208854,45.37257294,105.83,105.76,40.16729499]
[1644596209054,4.726,105.82,105.77,3.8178432]
[1644596209254,4.726,105.82,105.77,6.48396418]
[1644596209457,50.09857294,105.83,105.78,35.23472514]
[1644596209654,0.25,105.82,105.79,3.8178432]
[1644596209854,6.06439994,105.81,105.78,2.66612098]
[1644596210879,6.06439994,105.81,105.79,2.66612098]
[1644596211379,50.0047567,105.83,105.79,2.66612098]
[1644596212582,50.0047567,105.83,105.78,2.66612098]
[1644596212780,64.1918567,105.83,105.78,2.66612098]
[1644596213382,59.4658567,105.83,105.78,2.66612098]
[1644596213580,4.725,105.82,105.78,2.66612098]
[1644596213781,4.725,105.82,105.77,2.66612098]
[1644596213982,4.726,105.81,105.76,2.66612098]
[1644596214384,19.56858926,105.8,105.77,2.66612098]
[1644596214583,6.06439994,105.79,105.77,2.66612098]
[1644596215084,6.06439994,105.79,105.76,2.66612098]
[1644596215884,10.79139994,105.79,105.76,2.66612098]
[1644596216086,10.79139994,105.79,105.73,7.73125929]
[1644596216390,42.61263572,105.78,105.69,46.52256859]
[1644596216590,42.61263572,105.78,105.7,3.68746732]
[1644596216591,19.56858926,105.76,105.7,3.68746732]
[1644596216988,4.729,105.75,105.7,3.68746732]
[1644596217188,19.56858926,105.76,105.7,3.68746732]
[1644596217590,4.729,105.75,105.7,3.68746732]
[1644596218188,4.979,105.75,105.7,3.68746732]
[1644596218986,4.979,105.75,105.69,3.68746732]
[1644596219188,4.979,105.75,105.7,3.68746732]
[1644596219385,4.979,105.75,105.68,14.1934]
[1644596219585,4.979,105.75,105.69,3.56049075]
[1644596219786,4.979,105.75,105.69,48.84314337]
[1644596220086,0.25,105.75,105.7,3.56049075]
[1644596220287,14.1948,105.77,105.7,3.56049075]
[1644596220486,14.4448,105.77,105.7,3.56049075]
[1644596220790,36.58215646,105.76,105.7,3.56049075]
[1644596221589,36.58215646,105.76,105.69,3.56049075]
[1644596221791,36.58215646,105.76,105.68,14.1934]
[1644596221990,36.58215646,105.76,105.7,3.55878213]
[1644596222190,36.58215646,105.76,105.69,51.88630064]
[1644596222390,36.58215646,105.76,105.7,3.55878213]
[1644596222792,36.58215646,105.76,105.69,17.75218213]
[1644596222991,36.58215646,105.76,105.7,3.55878213]
[1644596223197,18.9217,105.79,105.7,3.55878213]
[1644596223394,4.729,105.77,105.7,5.94245004]
[1644596223593,7.0,105.8,105.71,14.87878213]
[1644596223791,4.728,105.83,105.71,51.21339274]
[1644596223992,42.9689,105.85,105.73,14.1861]
[1644596224194,43.84407224,105.84,105.74,20.87878213]
[1644596224393,43.84407224,105.84,105.75,37.88183879]
[1644596224592,4.726,105.83,105.75,17.26245004]
[1644596224794,4.726,105.83,105.75,13.70366791]
[1644596224992,4.726,105.83,105.73,13.70366791]
[1644596225194,18.9125,105.83,105.71,24.5032]
[1644596225397,18.9125,105.83,105.72,9.55776275]
[1644596225594,18.33715274,105.82,105.72,6.0]
[1644596225792,43.84407224,105.8,105.72,6.25]
[1644596225997,43.84407224,105.8,105.72,8.63366791]
[1644596226595,18.33715274,105.78,105.72,8.63366791]
[1644596226797,18.33715274,105.78,105.72,22.82336791]
[1644596228297,18.33715274,105.78,105.73,44.9467212]
[1644596228600,14.1888,105.82,105.73,59.1349212]
[1644596228798,14.1888,105.82,105.74,2.38366791]
[1644596228997,4.727,105.81,105.73,44.9467212]
[1644596229397,4.727,105.81,105.72,19.95366791]
[1644596229597,4.727,105.81,105.73,14.1885]
[1644596230399,41.24435265,105.8,105.73,14.1885]
[1644596230598,20.93687233,105.78,105.73,14.1885]
[1644596230998,18.9158,105.82,105.73,58.11979802]
[1644596231900,43.20666645,105.81,105.73,58.11979802]
[1644596232100,4.727,105.8,105.73,58.11979802]
[1644596232301,4.727,105.8,105.73,60.50346593]
[1644596232501,57.39526645,105.81,105.73,60.50346593]
[1644596232502,43.20666645,105.81,105.73,60.50346593]
[1644596232698,43.45666645,105.81,105.73,60.50346593]
[1644596233098,43.45666645,105.81,105.75,59.89992535]
[1644596233499,43.20666645,105.81,105.75,62.53359326]
[1644596233903,4.726,105.84,105.75,62.53359326]
[1644596234100,51.5269,105.85,105.75,62.53359326]
[1644596234701,14.1847,105.84,105.75,62.53359326]
[1644596234902,63.50766912,105.84,105.75,62.53359326]
[1644596235702,63.75766912,105.84,105.75,62.53359326]
[1644596235903,63.75766912,105.84,105.75,76.61689326]
[1644596236103,59.03266912,105.84,105.75,76.61689326]
[1644596236505,4.726,105.83,105.75,76.61689326]
[1644596236702,17.58325586,105.82,105.75,76.61689326]
[1644596237204,4.726,105.81,105.75,14.1853]
[1644596237404,4.726,105.81,105.75,16.56896791]
[1644596237804,4.726,105.81,105.75,14.1853]
[1644596238006,36.05205495,105.8,105.75,14.1853]
[1644596239206,36.05205495,105.8,105.75,16.56896791]
[1644596240206,36.05205495,105.8,105.75,16.81896791]
[1644596240808,36.05205495,105.8,105.75,14.4353]
[1644596241006,36.05205495,105.8,105.75,14.1853]
[1644596241209,4.727,105.79,105.71,85.49946791]
[1644596241406,4.727,105.79,105.71,26.88686791]
[1644596241609,26.12917003,105.78,105.71,24.5032]
[1644596242007,36.05205495,105.76,105.7,53.39960164]
[1644596242212,36.05205495,105.76,105.71,14.1916]
[1644596242605,36.05205495,105.76,105.71,14.4416]
[1644596243010,36.05205495,105.76,105.7,11.32]
[1644596243209,4.729,105.75,105.68,37.91436791]
[1644596243406,36.05205495,105.76,105.69,14.1943]
[1644596243605,4.729,105.75,105.69,17.75483237]
[1644596243806,4.729,105.75,105.69,14.1943]
[1644596244005,26.12917003,105.74,105.69,14.1943]
[1644596245306,26.12917003,105.74,105.7,2.38366791]
[1644596245805,14.1948,105.76,105.7,2.38366791]
[1644596246007,14.1948,105.76,105.69,14.1943]
[1644596246607,43.18700621,105.75,105.69,14.1943]
[1644596247310,62.11230621,105.75,105.68,2.38366791]
[1644596247508,62.11230621,105.75,105.66,2.38366791]
[1644596247910,57.38330621,105.75,105.67,3.5614473]
[1644596248612,18.99421877,105.73,105.67,3.5614473]
[1644596248811,4.73,105.72,105.67,3.5614473]
[1644596249413,33.19371877,105.73,105.67,3.5614473]
[1644596249612,4.73,105.71,105.64,2.38366791]
[1644596249913,43.18700621,105.7,105.65,3.55096936]
[1644596250511,43.18700621,105.7,105.64,2.38366791]
[1644596250712,4.731,105.69,105.64,2.38366791]
[1644596251316,18.99421877,105.68,105.64,2.38366791]
[1644596252416,4.732,105.72,105.64,2.38366791]
[1644596252616,47.3421,105.73,105.64,2.38366791]
[1644596252815,54.3421,105.73,105.64,2.38366791]
[1644596253315,4.731,105.72,105.65,44.02275421]
[1644596253716,4.731,105.72,105.66,2.38366791]
[1644596253915,45.1112605,105.73,105.67,36.68037518]
[1644596254316,40.3802605,105.73,105.67,36.68037518]
[1644596254817,45.1102605,105.73,105.67,36.68037518]
[1644596255817,40.3802605,105.73,105.67,50.87707518]
[1644596256217,38.3793,105.74,105.67,50.87707518]
[1644596256420,77.9389,105.77,105.67,53.26074309]
[1644596256623,0.25,105.74,105.67,53.51074309]
[1644596256819,4.98,105.77,105.67,53.51074309]
[1644596257225,40.91420474,105.76,105.67,53.26074309]
[1644596257422,21.26702024,105.74,105.67,53.26074309]
[1644596257622,21.26702024,105.74,105.67,16.58036791]
[1644596257823,4.73,105.73,105.67,16.58036791]
[1644596258023,21.26702024,105.74,105.67,16.58036791]
[1644596258423,35.46482024,105.74,105.67,2.38366791]
[1644596258623,4.73,105.73,105.66,14.1984]
[1644596258822,40.91420474,105.72,105.66,14.1984]
[1644596259224,40.91420474,105.72,105.66,16.58206791]
[1644596259854,21.26702024,105.7,105.65,74.97973088]
[1644596260056,21.26702024,105.7,105.65,27.8396]
[1644596260253,21.26702024,105.7,105.65,13.64]
[1644596260553,4.731,105.69,105.62,13.64]
[1644596260852,21.26702024,105.7,105.63,6.0]
[1644596261052,21.26702024,105.7,105.62,53.34562789]
[1644596261652,4.732,105.69,105.62,20.2036]
[1644596261854,4.732,105.69,105.62,6.0]
[1644596262053,21.26702024,105.7,105.62,6.0]
[1644596262255,21.26702024,105.7,105.62,8.63366791]
[1644596262459,4.732,105.69,105.62,8.38366791]
[1644596262654,40.91420474,105.68,105.62,49.10566474]
[1644596263255,40.91420474,105.68,105.62,49.35566474]
[1644596263756,40.91420474,105.68,105.62,63.55936474]
[1644596264260,18.9341,105.71,105.62,63.55936474]
[1644596264458,28.7757,105.72,105.62,63.55936474]
[1644596264658,0.25,105.72,105.63,3.53945607]
[1644596264858,14.4505,105.72,105.65,14.1995]
[1644596265060,37.88586139,105.71,105.66,39.09612895]
[1644596265459,37.88586139,105.71,105.65,14.1995]
[1644596265658,4.731,105.71,105.65,14.1995]
[1644596265861,23.7134,105.73,105.65,14.1995]
[1644596266160,4.73,105.72,105.65,14.1995]
[1644596266761,4.73,105.72,105.66,40.24553981]
[1644596266960,4.73,105.72,105.67,14.1966]
[1644596267161,4.73,105.74,105.67,14.1966]
[1644596267763,42.9855,105.75,105.67,14.1966]
[1644596267961,76.89349691,105.75,105.68,48.2073471]
[1644596268163,24.0581,105.75,105.68,62.4025471]
[1644596268361,24.0581,105.75,105.68,60.01887919]
[1644596268564,4.729,105.74,105.68,60.01887919]
[1644596269465,22.14834135,105.73,105.68,60.01887919]
[1644596270665,0.25,105.74,105.68,60.01887919]
[1644596270866,4.73,105.73,105.68,60.01887919]
[1644596271270,18.9264,105.75,105.68,60.01887919]
[1644596271670,54.50678714,105.75,105.68,60.01887919]
[1644596272568,54.75678714,105.75,105.68,60.01887919]
[1644596272969,40.56038714,105.75,105.68,60.01887919]
[1644596274281,40.56038714,105.75,105.68,60.26887919]
[1644596274679,4.98,105.75,105.68,60.26887919]
[1644596274878,4.98,105.75,105.68,62.6525471]
[1644596275282,0.25,105.75,105.68,62.6525471]
[1644596275486,4.729,105.75,105.68,62.6525471]
[1644596275681,15.436,105.76,105.69,3.55705931]
[1644596275979,4.729,105.76,105.7,62.37970357]
[1644596276381,46.1664,105.77,105.7,64.76337148]
[1644596276580,7.0,105.8,105.7,64.76337148]
[1644596276780,4.728,105.79,105.7,64.76337148]
[1644596276980,4.728,105.81,105.7,112.34377148]
[1644596277381,47.34301707,105.8,105.7,112.34377148]
[1644596277581,14.83820791,105.78,105.7,112.34377148]
[1644596277785,14.83820791,105.78,105.7,112.09377148]
[1644596278408,40.71232584,105.76,105.7,109.71010357]
[1644596278601,40.71232584,105.76,105.7,61.5234]
[1644596278900,4.729,105.75,105.7,14.193]
[1644596279400,4.729,105.75,105.69,14.1944]
[1644596279602,21.46889914,105.74,105.69,14.1944]
[1644596280202,0.25,105.76,105.69,14.1944]
[1644596280408,4.729,105.79,105.69,16.57806791]
[1644596280704,4.728,105.81,105.73,14.1878]
[1644596280903,30.3525,105.82,105.73,27.8278]
[1644596280904,35.0795,105.82,105.73,27.8278]
[1644596281103,30.3525,105.82,105.74,8.38366791]
[1644596281307,43.35770978,105.81,105.75,39.4762646]
[1644596281505,48.08370978,105.81,105.74,2.63366791]
[1644596281705,48.08370978,105.81,105.73,13.64]
[1644596281902,48.08370978,105.81,105.75,14.1854]
[1644596282502,43.35770978,105.81,105.75,59.34610194]
[1644596282704,4.726,105.8,105.75,14.1854]
[1644596282907,4.726,105.8,105.72,13.64]
[1644596283204,4.976,105.8,105.72,13.64]
[1644596283407,4.727,105.79,105.69,13.64]
[1644596283605,18.8235152,105.78,105.68,40.76288698]
[1644596283804,18.9235,105.77,105.68,38.37921907]
[1644596284006,39.80740964,105.76,105.68,38.37921907]
[1644596284208,4.729,105.75,105.68,38.37921907]
[1644596284408,22.37381534,105.74,105.68,52.57481907]
[1644596284607,22.37381534,105.74,105.68,54.95848698]
[1644596284808,14.1942,105.77,105.68,54.95848698]
[1644596285007,46.1216,105.78,105.68,54.95848698]
[1644596285210,46.1216,105.78,105.69,6.0]
[1644596285411,4.728,105.77,105.69,6.0]
[1644596285612,4.729,105.81,105.71,14.1906]
[1644596285912,37.71372192,105.8,105.72,54.28912369]
[1644596286112,37.71372192,105.8,105.72,103.9603916]
[1644596286309,37.71372192,105.8,105.72,104.2103916]
[1644596286511,4.727,105.83,105.73,2.38366791]
[1644596286711,0.25,105.83,105.74,27.8263]
[1644596287113,4.726,105.84,105.74,30.45996791]
[1644596287319,4.976,105.84,105.74,30.45996791]
[1644596287514,4.726,105.84,105.75,36.36466042]
[1644596287712,69.6973,105.85,105.77,14.1823]
[1644596287915,4.725,105.84,105.77,14.1823]
[1644596288113,4.725,105.84,105.77,27.8223]
[1644596288715,44.49875413,105.84,105.78,48.13746406]
[1644596289314,4.725,105.84,105.78,48.13746406]
[1644596289514,4.975,105.84,105.78,48.13746406]
[1644596290316,53.47094273,105.84,105.78,48.13746406]
[1644596290820,53.47094273,105.84,105.77,14.1823]
[1644596291216,48.74594273,105.84,105.77,14.1823]
[1644596291515,4.725,105.83,105.77,14.1823]
[1644596291714,13.68528225,105.82,105.75,13.64]
[1644596291916,39.96218306,105.8,105.73,98.29914394]
[1644596292225,39.96218306,105.8,105.74,6.0]
[1644596292515,44.68918306,105.8,105.74,6.0]
[1644596292716,39.96218306,105.8,105.74,20.1875]
[1644596292916,39.96218306,105.8,105.74,33.8275]
[1644596293917,39.96218306,105.8,105.74,27.8275]
[1644596294419,4.727,105.79,105.74,13.64]
[1644596294821,4.727,105.79,105.71,13.64]
[1644596295217,4.727,105.79,105.72,6.0]
[1644596295418,22.21904192,105.78,105.72,6.0]
[1644596295619,22.21904192,105.78,105.72,6.25]
[1644596295823,22.21904192,105.78,105.72,20.4403]
[1644596296020,22.21904192,105.78,105.72,20.1903]
[1644596296521,4.728,105.77,105.72,6.0]
[1644596296720,4.728,105.77,105.71,14.1918]
[1644596296920,4.728,105.77,105.7,13.64]
[1644596297519,36.84851039,105.76,105.7,49.22055479]
[1644596298327,14.1936,105.78,105.7,63.41375479]
[1644596298528,4.729,105.79,105.7,63.41375479]
[1644596298726,4.729,105.79,105.7,63.66375479]
[1644596299124,4.979,105.79,105.7,63.66375479]